bitfinex/quotes_SOLUSD_20220210
["timestamp","ask_amount","ask_price","bid_price","bid_amount"]
[1644457935482,26.9857,113.16,113.09,46.02491]
[1644457935683,22.5657,113.16,113.09,46.04891]
[1644457935884,22.5657,113.16,113.1,0.024]
[1644457936285,13.264,113.15,113.1,0.024]
[1644457936487,24.248,113.15,113.1,0.024]
[1644457936685,4.418,113.14,113.1,0.024]
[1644457936887,4.418,113.14,113.08,24.7441]
[1644457937087,4.42,113.15,113.08,24.7441]
[1644457937287,45.13497724,113.14,113.09,0.024]
[1644457937487,45.13497724,113.14,113.08,24.7441]
[1644457937688,13.2665,113.13,113.08,24.7441]
[1644457937888,45.94014213,113.12,113.08,24.7441]
[1644457938587,45.94014213,113.12,113.08,0.024]
[1644457941087,59.20764213,113.12,113.08,0.024]
[1644457941288,59.20764213,113.12,113.06,76.6452]
[1644457943187,59.20764213,113.12,113.06,72.2272]
[1644457944587,59.20764213,113.12,113.07,36.37415155]
[1644457944786,59.20764213,113.12,113.07,36.39815155]
[1644457944988,59.20764213,113.12,113.07,0.024]
[1644457945788,4.421,113.11,113.07,0.024]
[1644457945989,43.17973288,113.1,113.07,0.024]
[1644457946190,43.17973288,113.1,113.06,84.35021528]
[1644457946388,43.17973288,113.1,113.06,36.8859]
[1644457947491,43.17973288,113.1,113.06,77.13264563]
[1644457950893,43.14973288,113.1,113.06,77.13264563]
[1644457951694,43.14973288,113.1,113.06,36.8859]
[1644457962410,43.14973288,113.1,113.06,38.12471034]
[1644457963009,4.421,113.11,113.07,61.29575331]
[1644457963208,28.0528,113.14,113.07,61.29575331]
[1644457963407,28.0528,113.14,113.07,64.43530294]
[1644457963908,41.67343263,113.13,113.07,64.43530294]
[1644457964109,13.2635,113.15,113.1,13.2635]
[1644457964308,1.23422607,113.18,113.11,12.46]
[1644457964607,4.418,113.17,113.11,12.484]
[1644457965139,41.38858717,113.16,113.11,12.484]
[1644457965307,40.96819238,113.14,113.11,12.484]
[1644457965507,40.96819238,113.14,113.12,6.06439994]
[1644457970518,4.418,113.15,113.12,6.06439994]
[1644457971516,40.50187248,113.15,113.12,6.06439994]
[1644457971918,36.08387248,113.15,113.12,6.06439994]
[1644457973839,53.76507248,113.15,113.1,0.024]
[1644457975541,49.34707248,113.15,113.1,0.024]
[1644457975940,72.34677248,113.15,113.1,0.024]
[1644457977341,13.2699,113.13,113.08,0.024]
[1644457977542,4.42,113.12,113.08,0.024]
[1644457977941,43.47020754,113.11,113.08,0.024]
[1644457978142,43.47020754,113.11,113.07,4.418]
[1644457978742,56.73970754,113.11,113.07,4.418]
[1644457978942,56.73970754,113.11,113.06,56.54377832]
[1644457983556,56.73970754,113.11,113.06,69.81187832]
[1644457985666,56.73970754,113.11,113.06,56.54377832]
[1644457988767,13.2695,113.11,113.06,56.54377832]
[1644457988965,13.2695,113.11,113.06,71.68861761]
[1644457989167,38.0797,113.12,113.06,71.68861761]
[1644457989767,77.90341918,113.12,113.06,69.81187832]
[1644457991888,77.90341918,113.12,113.06,56.54377832]
[1644457995591,42.77106536,113.1,113.06,56.54377832]
[1644457995790,56.04046536,113.1,113.06,56.51977832]
[1644457999996,56.04046536,113.1,113.06,12.46]
[1644458005004,56.04046536,113.1,113.06,59.30591227]
[1644458005204,42.77106536,113.1,113.06,59.30591227]
[1644458006105,42.77106536,113.1,113.06,72.57401227]
[1644458006303,42.77106536,113.1,113.06,25.7281]
[1644458007107,56.03986536,113.1,113.06,25.7281]
[1644458008908,42.77106536,113.1,113.06,25.7281]
[1644458014013,42.77106536,113.1,113.06,65.54642574]
[1644458014312,13.2679,113.11,113.06,65.54642574]
[1644458014519,13.2679,113.11,113.06,65.57042574]
[1644458015415,60.60344084,113.11,113.06,65.57042574]
[1644458016016,13.2679,113.11,113.06,65.57042574]
[1644458016216,17.6878,113.12,113.06,65.57042574]
[1644458017120,44.85191561,113.11,113.06,65.57042574]
[1644458017317,58.11971561,113.11,113.06,65.57042574]
[1644458021037,58.11971561,113.11,113.08,1.679254]
[1644458024240,13.2698,113.09,113.08,1.679254]
[1644458024641,54.72315033,113.09,113.08,1.679254]
[1644458026641,54.72315033,113.09,113.04,0.024]
[1644458026842,54.72315033,113.09,113.03,0.024]
[1644458027046,13.2749,113.07,113.02,0.024]
[1644458027245,4.423,113.06,113.02,0.024]
[1644458027443,4.423,113.06,113.0,23.9453]
[1644458027746,38.48280678,113.05,113.0,23.9453]
[1644458028842,51.75880678,113.05,113.0,23.9453]
[1644458033046,51.75880678,113.05,113.01,43.73033025]
[1644458035650,13.276,113.05,113.01,43.73033025]
[1644458036452,13.276,113.05,113.0,23.9453]
[1644458036652,24.234,113.05,113.0,23.9453]
[1644458037454,13.2783,113.03,113.0,23.9453]
[1644458037653,43.99928922,113.02,113.0,0.024]
[1644458037854,43.99928922,113.02,112.98,65.48245496]
[1644458038056,43.99928922,113.02,112.98,65.45845496]
[1644458038255,43.99928922,113.02,112.99,6.0]
[1644458038557,43.99928922,113.02,113.0,3.03219997]
[1644458040055,13.2783,113.03,113.0,3.03219997]
[1644458040663,13.2783,113.03,113.01,3.03219997]
[1644458041457,13.2783,113.03,112.99,28.9534]
[1644458041658,47.67715548,113.02,112.99,28.9534]
[1644458042359,23.2703,113.03,112.99,28.9534]
[1644458042560,9.992,113.03,112.99,28.9534]
[1644458043164,9.992,113.03,112.99,33.3774]
[1644458043363,13.2768,113.04,112.99,33.3774]
[1644458043561,13.2768,113.04,113.0,35.63425342]
[1644458044761,13.2768,113.04,113.01,6.0]
[1644458044965,82.98203742,113.05,113.02,36.63238345]
[1644458045164,13.2756,113.05,113.02,36.63238345]
[1644458045666,4.423,113.07,113.03,3.03219997]
[1644458045867,4.423,113.07,113.03,6.06439994]
[1644458046064,13.2745,113.06,113.04,41.31026313]
[1644458046263,4.423,113.07,113.04,41.31026313]
[1644458046264,4.422,113.08,113.04,41.31026313]
[1644458046464,49.8555545,113.09,113.04,41.31026313]
[1644458046864,45.4335545,113.09,113.04,43.21100242]
[1644458047063,4.422,113.08,113.04,56.48080242]
[1644458047264,4.422,113.08,113.04,56.45680242]
[1644458047463,13.2698,113.1,113.04,56.45680242]
[1644458047464,4.422,113.09,113.04,54.58006313]
[1644458047663,13.2698,113.1,113.04,54.60406313]
[1644458048064,13.2698,113.1,113.04,67.06406313]
[1644458048267,48.6584,113.12,113.05,1.87673929]
[1644458048268,4.422,113.12,113.05,1.87673929]
[1644458048465,67.68584483,113.13,113.06,39.34557698]
[1644458048664,67.68584483,113.13,113.06,52.61217698]
[1644458048864,1.23422607,113.15,113.06,54.48891627]
[1644458049064,23.3715,113.16,113.07,12.46]
[1644458049265,23.3715,113.16,113.07,36.2094]
[1644458049467,13.2641,113.15,113.07,38.08613929]
[1644458049666,14.0985,113.15,113.08,4.42]
[1644458049867,46.98853081,113.14,113.09,46.88688471]
[1644458050873,46.98853081,113.14,113.09,34.42688471]
[1644458052199,2.755,113.13,113.09,34.42688471]
[1644458052399,39.76411283,113.12,113.09,34.42688471]
[1644458052800,39.76411283,113.12,113.1,6.06439994]
[1644458052998,2.755,113.13,113.1,6.06439994]
[1644458054000,45.827481,113.13,113.1,6.06439994]
[1644458054701,59.093781,113.13,113.1,6.06439994]
[1644458062312,16.0213,113.13,113.1,53.87180079]
[1644458062513,2.755,113.13,113.1,53.87180079]
[1644458063414,42.05453355,113.15,113.1,53.87180079]
[1644458063612,55.31843355,113.15,113.1,53.87180079]
[1644458064415,23.3715,113.16,113.1,53.87180079]
[1644458064615,2.759,113.18,113.11,4.418]
[1644458064817,1.2710355,113.19,113.11,17.679]
[1644458065015,0.03680943,113.19,113.11,17.679]
[1644458065215,0.03680943,113.19,113.11,40.634]
[1644458065416,45.02078525,113.19,113.12,38.69633698]
[1644458065616,47.77978525,113.19,113.12,38.69633698]
[1644458066116,61.03898525,113.19,113.12,51.95643698]
[1644458067219,47.77978525,113.19,113.12,53.83317627]
[1644458067426,2.79580943,113.19,113.12,53.83317627]
[1644458067621,2.759,113.19,113.12,53.83317627]
[1644458067818,0.03610208,113.19,113.13,17.6765]
[1644458068321,0.03610208,113.19,113.14,43.51682362]
[1644458068518,47.16597116,113.19,113.14,53.26656291]
[1644458068721,47.20207324,113.19,113.14,51.38982362]
[1644458068921,0.03610208,113.19,113.15,17.6747]
[1644458069123,0.03610208,113.2,113.15,13.2567]
[1644458069322,13.29310208,113.21,113.16,4.417]
[1644458069519,13.257,113.21,113.16,4.417]
[1644458069921,59.81951186,113.21,113.16,49.77554232]
[1644458071518,62.58251186,113.21,113.16,45.35854232]
[1644458072320,62.58251186,113.21,113.15,25.7167]
[1644458073621,62.58251186,113.21,113.15,12.46]
[1644458074620,2.757,113.2,113.15,12.46]
[1644458074819,40.097432,113.19,113.15,12.46]
[1644458075023,39.91056566,113.19,113.15,12.46]
[1644458076623,39.91056566,113.19,113.16,38.75341818]
[1644458076828,13.2582,113.2,113.16,38.75341818]
[1644458077022,16.04410208,113.21,113.17,6.06439994]
[1644458077226,13.257,113.21,113.17,6.06439994]
[1644458077921,56.33931178,113.21,113.17,6.06439994]
[1644458078122,56.33931178,113.21,113.17,3.03219997]
[1644458078323,56.33931178,113.21,113.16,38.75341818]
[1644458080226,13.257,113.21,113.16,38.75341818]
[1644458080424,2.79310208,113.22,113.16,52.00941818]
[1644458080626,0.03610208,113.22,113.16,75.69441818]
[1644458080826,4.02732815,113.24,113.17,4.417]
[1644458081025,0.03610208,113.22,113.17,4.417]
[1644458081227,37.71781,113.23,113.17,4.417]
[1644458081430,0.03610208,113.22,113.17,4.417]
[1644458081626,37.75391208,113.23,113.17,4.417]
[1644458081925,0.03610208,113.22,113.17,4.417]
[1644458082127,37.75391208,113.23,113.17,4.417]
[1644458082326,0.03610208,113.22,113.17,4.417]
[1644458083027,38.98813815,113.23,113.17,4.417]
[1644458083226,0.03610208,113.22,113.17,4.417]
[1644458083429,38.98813815,113.23,113.17,4.417]
[1644458083727,44.60119366,113.21,113.17,4.417]
[1644458083929,57.85869366,113.21,113.17,4.417]
[1644458084427,2.757,113.2,113.17,4.417]
[1644458085032,2.757,113.2,113.18,3.03219997]
[1644458085235,57.85869366,113.21,113.19,3.03219997]
[1644458085631,57.85869366,113.21,113.17,42.25163983]
[1644458085831,57.85869366,113.21,113.15,13.2574]
[1644458086932,57.85869366,113.21,113.16,37.37523806]
[1644458087336,57.85869366,113.21,113.15,36.2031]
[1644458088533,57.85869366,113.21,113.16,46.27963687]
[1644458090035,13.2575,113.21,113.16,59.53573687]
[1644458090237,38.81062815,113.22,113.16,59.53573687]
[1644458090637,37.57640208,113.22,113.16,59.53573687]
[1644458091035,79.25429669,113.22,113.16,59.53573687]
[1644458091834,79.25429669,113.22,113.16,46.27963687]
[1644458092036,1.23422607,113.21,113.16,46.27963687]
[1644458092238,42.55223078,113.2,113.16,46.27963687]
[1644458092435,43.78645685,113.2,113.16,46.27963687]
[1644458092655,42.55223078,113.2,113.16,46.27963687]
[1644458093254,43.78645685,113.2,113.15,48.6629]
[1644458093656,57.04415685,113.2,113.15,48.6629]
[1644458094456,1.23422607,113.19,113.15,48.6629]
[1644458094656,43.6904946,113.18,113.15,48.6629]
[1644458094859,43.6904946,113.18,113.16,6.06439994]
[1644458095257,1.23422607,113.19,113.16,6.06439994]
[1644458096360,38.60552255,113.18,113.16,3.03219997]
[1644458096559,38.60552255,113.18,113.13,40.5162]
[1644458096759,38.60552255,113.18,113.13,23.6392]
[1644458096961,39.83974862,113.18,113.13,23.6392]
[1644458097159,39.83974862,113.18,113.12,4.418]
[1644458097462,42.59774862,113.18,113.1,36.88598593]
[1644458097659,1.27032815,113.17,113.11,27.5872]
[1644458097859,34.45263473,113.16,113.11,40.8487]
[1644458098059,34.45263473,113.16,113.11,36.4307]
[1644458098260,34.45263473,113.16,113.11,13.2615]
[1644458098461,34.45263473,113.16,113.1,36.88598593]
[1644458098660,38.4438608,113.16,113.09,4.418]
[1644458098861,38.4438608,113.16,113.1,6.0]
[1644458098862,13.2661,113.14,113.1,6.0]
[1644458099362,13.2661,113.14,113.09,6.0]
[1644458099761,36.35553864,113.13,113.09,41.70778736]
[1644458099964,49.62133864,113.13,113.09,41.70778736]
[1644458100868,52.37833864,113.13,113.09,41.70778736]
[1644458101871,49.62133864,113.13,113.09,41.70778736]
[1644458102374,13.2651,113.14,113.09,41.70778736]
[1644458103273,1.23422607,113.16,113.09,41.70778736]
[1644458103476,14.49722607,113.16,113.09,64.68638736]
[1644458103775,48.74579922,113.17,113.11,34.87122209]
[1644458103972,47.51157315,113.17,113.11,34.87122209]
[1644458105476,60.77277315,113.17,113.12,6.0]
[1644458105675,2.757,113.16,113.12,6.0]
[1644458106278,2.757,113.16,113.13,48.4963494]
[1644458106477,60.73667107,113.17,113.14,6.06439994]
[1644458112309,47.47547107,113.17,113.14,6.06439994]
[1644458112710,13.29630208,113.18,113.14,6.06439994]
[1644458112914,0.03610208,113.18,113.14,6.06439994]
[1644458113411,1.27032815,113.2,113.14,10.48239994]
[1644458113612,0.03610208,113.19,113.14,10.48239994]
[1644458113812,35.00349622,113.19,113.14,6.06439994]
[1644458114011,36.27382437,113.19,113.14,6.06439994]
[1644458114813,49.53302437,113.19,113.15,39.37720154]
[1644458115014,2.758,113.18,113.15,39.37720154]
[1644458116012,13.2592,113.19,113.16,6.06439994]
[1644458116213,14.49202607,113.2,113.16,6.06439994]
[1644458117414,14.49202607,113.2,113.17,48.04530149]
[1644458117616,1.23422607,113.2,113.18,3.03219997]
[1644458117818,14.49102607,113.21,113.19,3.03219997]
[1644458118220,13.2568,113.21,113.19,3.03219997]
[1644458118420,14.49102607,113.21,113.19,3.03219997]
[1644458118819,13.2568,113.21,113.19,3.03219997]
[1644458119019,13.2568,113.21,113.2,3.03219997]
[1644458119220,14.48982607,113.22,113.2,3.03219997]
[1644458119621,14.48982607,113.22,113.19,47.82290919]
[1644458120322,14.48982607,113.22,113.2,3.03219997]
[1644458121121,14.48982607,113.22,113.21,3.03219997]
[1644458121522,14.48982607,113.22,113.2,3.03219997]
[1644458121725,14.48982607,113.22,113.19,44.79070922]
[1644458124223,14.48982607,113.22,113.16,29.0856]
[1644458124424,14.52592815,113.22,113.16,29.0856]
[1644458125326,14.52592815,113.22,113.17,40.37450645]
[1644458125926,14.52592815,113.22,113.17,27.42300345]
[1644458126326,1.27032815,113.22,113.17,39.22000345]
[1644458126526,0.03610208,113.22,113.17,51.68000345]
[1644458126827,0.03610208,113.24,113.18,10.417]
[1644458127027,0.03610208,113.22,113.19,12.46]
[1644458127227,0.03610208,113.24,113.21,43.01535308]
[1644458127426,0.03610208,113.26,113.21,43.01535308]
[1644458128230,0.03610208,113.26,113.21,68.15965308]
[1644458128434,0.03610208,113.26,113.21,70.03639237]
[1644458128634,1.23422607,113.28,113.22,12.46]
[1644458128635,0.03610208,113.28,113.22,12.46]
[1644458128831,0.03610208,113.27,113.22,12.46]
[1644458129030,0.03610208,113.28,113.23,4.415]
[1644458129230,36.74772113,113.29,113.24,40.85811107]
[1644458130156,0.03610208,113.29,113.24,40.85811107]
[1644458130332,1.27032815,113.31,113.25,18.46]
[1644458130532,0.03610208,113.3,113.26,13.2426]
[1644458130733,0.03610208,113.31,113.26,25.7026]
[1644458130937,0.03610208,113.33,113.26,25.7026]
[1644458131137,42.83058004,113.33,113.26,60.77017921]
[1644458132634,2.757,113.32,113.26,60.77017921]
[1644458132833,43.68518061,113.31,113.26,60.77017921]
[1644458136237,43.68518061,113.31,113.26,25.7026]
[1644458136435,2.757,113.3,113.26,12.46]
[1644458136637,2.757,113.3,113.24,47.4346]
[1644458136834,2.79310208,113.3,113.22,12.46]
[1644458137434,37.10788612,113.29,113.23,48.57464738]
[1644458137658,2.757,113.28,113.23,61.03464738]
[1644458137835,45.00969354,113.27,113.23,61.03464738]
[1644458138137,45.00969354,113.27,113.23,48.57464738]
[1644458138841,45.00969354,113.27,113.21,16.874]
[1644458139035,45.04579562,113.27,113.21,16.874]
[1644458139235,2.757,113.26,113.18,74.141]
[1644458139534,0.03610208,113.25,113.18,60.8904]
[1644458139735,2.757,113.24,113.18,60.8904]
[1644458139935,2.757,113.24,113.19,43.38903049]
[1644458140137,0.03610208,113.24,113.19,43.38903049]
[1644458140334,0.03610208,113.25,113.19,43.38903049]
[1644458140536,0.03610208,113.26,113.19,43.38903049]
[1644458140735,0.03610208,113.25,113.19,43.38903049]
[1644458140937,42.97331666,113.25,113.19,43.38903049]
[1644458141134,43.00941874,113.25,113.19,43.38903049]
[1644458142036,45.76741874,113.25,113.19,43.38903049]
[1644458142435,59.02001874,113.25,113.19,43.38903049]
[1644458143736,56.26201874,113.25,113.19,43.38903049]
[1644458144836,56.26201874,113.25,113.18,12.46]
[1644458145171,56.26201874,113.25,113.16,4.416]
[1644458145335,2.758,113.24,113.15,4.416]
[1644458145539,13.2581,113.22,113.15,4.416]
[1644458145740,13.29420208,113.22,113.15,4.416]
[1644458145936,50.57772463,113.22,113.16,41.90315057]
[1644458147437,2.757,113.21,113.16,41.90315057]
[1644458147639,52.72641298,113.2,113.16,41.90315057]
[1644458147838,52.72641298,113.2,113.14,45.9819]
[1644458148037,52.72641298,113.2,113.13,12.46]
[1644458148838,52.72641298,113.2,113.14,47.73340053]
[1644458149240,13.2587,113.2,113.14,47.73340053]
[1644458150738,13.2587,113.2,113.14,49.60541002]
[1644458151139,13.2587,113.2,113.14,47.73340053]
[1644458151646,13.2587,113.2,113.15,4.418]
[1644458151847,13.2587,113.2,113.16,48.21305519]
[1644458155750,2.79310208,113.22,113.16,48.21305519]
[1644458155950,2.79110208,113.24,113.17,1.87200949]
[1644458156249,0.03610208,113.22,113.17,12.46]
[1644458156455,0.03610208,113.24,113.18,4.417]
[1644458156654,0.03610208,113.22,113.19,36.0224133]
[1644458156854,47.93721904,113.24,113.19,44.0844133]
[1644458157056,47.90111696,113.24,113.19,44.0844133]
[1644458157855,47.90111696,113.24,113.19,36.0224133]
[1644458161180,16.04060208,113.25,113.19,36.0224133]
[1644458161976,0.03610208,113.25,113.19,49.2732133]
[1644458162180,0.03610208,113.27,113.2,16.876]
[1644458162377,0.03610208,113.25,113.21,48.21622013]
[1644458162578,0.03610208,113.27,113.21,54.21622013]
[1644458162778,0.03610208,113.28,113.21,65.30922013]
[1644458162976,0.03610208,113.27,113.22,4.415]
[1644458163177,0.03610208,113.28,113.22,16.875]
[1644458163381,2.82310208,113.29,113.22,16.875]
[1644458163779,2.82310208,113.29,113.23,44.29609245]
[1644458165480,2.82310208,113.29,113.23,57.54229245]
[1644458166081,0.03610208,113.29,113.23,57.54229245]
[1644458170284,0.03610208,113.29,113.23,70.00229245]
[1644458172481,0.03610208,113.29,113.23,56.75609245]
[1644458172683,13.28370208,113.29,113.22,4.415]
[1644458172884,2.757,113.28,113.21,22.6448]
[1644458173081,2.79310208,113.28,113.21,22.6448]
[1644458173781,48.08363582,113.27,113.2,39.80331782]
[1644458173984,34.96558499,113.25,113.2,39.80331782]
[1644458174182,2.757,113.24,113.2,39.80331782]
[1644458174582,2.757,113.24,113.2,4.414]
[1644458174784,18.21688512,113.24,113.2,4.414]
[1644458175589,38.10654616,113.23,113.2,4.414]
[1644458175791,13.2578,113.21,113.18,45.64018399]
[1644458175991,13.2578,113.21,113.13,25.7172]
[1644458176990,51.77539214,113.21,113.14,38.34458214]
[1644458177192,51.77539214,113.21,113.16,45.44472927]
[1644458177591,13.2578,113.21,113.16,45.44472927]
[1644458178591,16.0125,113.22,113.16,45.44472927]
[1644458179193,2.757,113.22,113.16,45.44472927]
[1644458179393,2.757,113.24,113.16,45.44472927]
[1644458179593,2.79310208,113.25,113.17,1.86873072]
[1644458179795,0.03610208,113.25,113.18,12.46]
[1644458180196,0.03610208,113.25,113.19,55.5851698]
[1644458180400,37.65635257,113.26,113.19,66.17643908]
[1644458180401,37.69245465,113.26,113.19,66.17643908]
[1644458180597,0.03610208,113.25,113.19,60.17643908]
[1644458180797,37.69245465,113.26,113.19,60.17643908]
[1644458181697,37.69245465,113.26,113.19,73.42723908]
[1644458183006,2.757,113.25,113.19,73.42723908]
[1644458183205,2.79310208,113.25,113.19,12.46]
[1644458183402,2.79310208,113.25,113.17,4.415]
[1644458183802,2.79310208,113.25,113.18,6.0]
[1644458184405,46.86638847,113.24,113.17,4.415]
[1644458184704,47.54132872,113.22,113.17,4.415]
[1644458185507,47.54132872,113.22,113.18,48.2453708]
[1644458185706,60.79672872,113.22,113.18,48.2453708]
[1644458186728,13.2545,113.23,113.18,48.2453708]
[1644458187729,57.01658316,113.23,113.18,48.2453708]
[1644458189232,13.2545,113.23,113.18,48.2453708]
[1644458189433,0.03610208,113.25,113.19,1.86873072]
[1644458189633,0.03610208,113.26,113.2,4.416]
[1644458189833,0.03610208,113.25,113.2,4.416]
[1644458190134,0.03610208,113.26,113.19,6.0]
[1644458190334,0.03610208,113.25,113.2,45.49349352]
[1644458190534,0.03610208,113.26,113.2,58.74369352]
[1644458190942,0.03610208,113.26,113.2,71.20369352]
[1644458191139,0.03610208,113.26,113.21,7.86873072]
[1644458191435,0.03610208,113.26,113.22,16.875]
[1644458191637,0.03610208,113.28,113.22,16.875]
[1644458191835,42.10104384,113.28,113.23,48.61243988]
[1644458192035,42.13714592,113.28,113.23,48.61243988]
[1644458192236,42.10104384,113.28,113.23,48.61243988]
[1644458193734,42.10104384,113.28,113.23,61.85993988]
[1644458194635,39.34004384,113.28,113.23,61.85993988]
[1644458195237,13.28350208,113.29,113.23,61.85993988]
[1644458195437,16.03650208,113.29,113.23,61.85993988]
[1644458196440,52.62391683,113.29,113.23,61.85993988]
[1644458196639,49.87091683,113.29,113.23,61.85993988]
[1644458200243,48.63669076,113.29,113.23,66.27393988]
[1644458200443,49.87091683,113.29,113.23,66.27393988]
[1644458201550,48.63669076,113.29,113.23,66.27393988]
[1644458202246,49.87091683,113.29,113.23,66.27393988]
[1644458202646,49.87091683,113.29,113.23,78.73393988]
[1644458202847,49.87091683,113.29,113.23,74.31993988]
[1644458203146,48.63669076,113.29,113.23,74.31993988]
[1644458203948,49.87091683,113.29,113.23,61.07243988]
[1644458208355,49.87091683,113.29,113.23,71.97243988]
[1644458212358,49.87091683,113.29,113.23,61.07243988]
[1644458213684,49.87091683,113.29,113.23,12.46]
[1644458216487,49.87091683,113.29,113.23,16.874]
[1644458217387,1.23422607,113.28,113.23,16.874]
[1644458217588,43.12045702,113.27,113.23,12.46]
[1644458220492,44.35468309,113.27,113.23,12.46]
[1644458223095,1.23422607,113.27,113.23,12.46]
[1644458223298,1.23422607,113.27,113.23,25.7075]
[1644458223498,1.23422607,113.28,113.23,25.7075]
[1644458223700,1.23422607,113.28,113.23,42.0535]
[1644458223899,1.23422607,113.27,113.23,42.0535]
[1644458224198,35.42582696,113.27,113.23,42.0535]
[1644458224601,34.19160089,113.27,113.23,42.0535]
[1644458225499,34.19160089,113.27,113.23,30.1215]
[1644458227801,34.19160089,113.27,113.23,25.7075]
[1644458230702,1.27032815,113.28,113.23,25.7075]
[1644458230902,1.23422607,113.28,113.23,25.7075]
[1644458231703,42.67841445,113.28,113.23,25.7075]
[1644458232203,55.92601445,113.28,113.23,25.7075]
[1644458232607,1.23422607,113.28,113.24,52.6076069]
[1644458233806,1.23422607,113.28,113.23,13.2476]
[1644458234006,1.27032815,113.28,113.23,13.2476]
[1644458234206,14.48222607,113.28,113.22,36.8189]
[1644458234404,14.48222607,113.28,113.22,24.3589]
[1644458234405,14.51832815,113.28,113.22,24.3589]
[1644458234606,45.12367564,113.26,113.22,24.3589]
[1644458234807,45.12367564,113.26,113.21,69.82915828]
[1644458236309,1.27032815,113.27,113.21,74.11389279]
[1644458236507,0.03610208,113.27,113.22,1.86873072]
[1644458236710,0.03610208,113.28,113.23,31.7069]
[1644458236906,1.23422607,113.29,113.23,36.1209]
[1644458237206,0.03610208,113.29,113.24,50.44071666]
[1644458237406,1.23422607,113.3,113.25,16.874]
[1644458237607,0.03610208,113.3,113.26,47.01879206]
[1644458237809,4.02932815,113.31,113.26,48.88752278]
[1644458238009,3.99322607,113.31,113.26,48.88752278]
[1644458238407,1.27032815,113.32,113.27,4.413]
[1644458238607,1.27032815,113.33,113.27,29.012]
[1644458238809,1.27032815,113.33,113.28,7.86873072]
[1644458238810,0.03610208,113.33,113.28,7.86873072]
[1644458239008,1.27032815,113.35,113.29,12.46]
[1644458239207,1.23422607,113.35,113.29,61.48328725]
[1644458239408,0.03610208,113.36,113.29,61.48328725]
[1644458239409,1.27032815,113.36,113.29,61.48328725]
[1644458239808,0.03610208,113.36,113.29,127.83168725]
[1644458240009,0.03610208,113.36,113.3,7.86873072]
[1644458240208,0.03610208,113.38,113.31,12.46]
[1644458240408,0.03610208,113.36,113.31,37.48143072]
[1644458240609,0.03610208,113.38,113.32,6.0]
[1644458240810,0.03610208,113.38,113.33,46.74160765]
[1644458241007,1.27032815,113.39,113.33,54.20160765]
[1644458241208,0.03610208,113.38,113.33,54.20160765]
[1644458241409,1.27032815,113.4,113.33,54.20160765]
[1644458241611,0.03610208,113.4,113.33,54.20160765]
[1644458241809,0.03610208,113.4,113.33,67.43520765]
[1644458242512,0.03610208,113.4,113.34,4.41]
[1644458242712,0.03610208,113.4,113.35,43.21726517]
[1644458243712,0.03610208,113.4,113.35,56.45096517]
[1644458244124,0.03610208,113.4,113.34,10.41]
[1644458244312,13.27170208,113.4,113.34,6.0]
[1644458244513,2.757,113.39,113.32,12.46]
[1644458244714,2.79310208,113.39,113.32,12.46]
[1644458244913,0.03610208,113.38,113.32,12.46]
[1644458245112,47.30162275,113.38,113.33,43.47066812]
[1644458245316,2.757,113.37,113.33,43.47066812]
[1644458246719,63.29652275,113.38,113.33,43.47066812]
[1644458246920,60.53952275,113.38,113.33,43.47066812]
[1644458248427,60.53952275,113.38,113.32,13.2373]
[1644458248628,2.757,113.37,113.32,13.2373]
[1644458249623,2.757,113.37,113.33,40.25035435]
[1644458249824,0.03610208,113.38,113.33,53.48655435]
[1644458250023,2.757,113.39,113.33,63.19955435]
[1644458250223,24.79470208,113.4,113.33,75.65955435]
[1644458250224,0.03610208,113.38,113.33,75.65955435]
[1644458250424,0.03610208,113.39,113.33,75.65955435]
[1644458250625,27.55170208,113.4,113.33,75.65955435]
[1644458250827,0.03610208,113.39,113.33,75.65955435]
[1644458251031,27.55170208,113.4,113.33,75.65955435]
[1644458252525,24.79470208,113.4,113.35,51.65097042]
[1644458252729,38.53299623,113.39,113.35,13.2336]
[1644458252925,38.53299623,113.39,113.33,37.3338]
[1644458253127,38.56909831,113.39,113.33,12.46]
[1644458253525,0.03610208,113.39,113.33,12.46]
[1644458253728,2.79410208,113.4,113.33,25.6951]
[1644458253944,0.03610208,113.4,113.33,25.6951]
[1644458254546,35.0120138,113.4,113.34,44.08422822]
[1644458254746,48.2475138,113.4,113.34,44.08422822]